[Event "1st Bangalore GM-Open-A 2024"]
[Site "Bangalore"]
[Date "2024.01.19"]
[Round "2.33"]
[White "Neelotpal, Das"]
[Black "Sadbhav Rautela"]
[Result "1/2-1/2"]
[ECO "E17"]
[WhiteElo "2329"]
[BlackElo "1949"]
[Annotator "RC"]
[PlyCount "150"]
[EventDate "2024.01.20"]
[EventType "swiss"]
[EventCountry "IND"]
[SourceTitle "playchess.com"]
[Source "ChessBase"]
[SourceQuality "1"]
[TimeControl "5400+30"]

1. d4 {[%emt 0:00:04]} Nf6 {[%emt 0:00:21]} 2. c4 {[%emt 0:00:06]} e6 {[%emt 0:00:21]} 3. Nf3 {[%emt 0:00:05]} b6 {[%emt 0:00:50]} 4. g3 {[%emt 0:00:05]} Bb7 {[%emt 0:00:08]} 5. Bg2 {[%emt 0:00:04]} Be7 {[%emt 0:01:32]} 6. O-O {[%emt 0:00:18]} O-O {[%emt 0:00:33]} 7. d5 {[%emt 0:00:25]} exd5 {[%emt 0:03:20]} 8. Nh4 {[%emt 0:00:05]} c6 {[%emt 0:04:12]} 9. cxd5 {[%emt 0:00:08]} Nxd5 {[%emt 0:02:15]} 10. Nf5 {[%emt 0:00:18]} Na6 {[%emt 0:04:59]} 11. e4 {[%emt 0:01:03]} Ndc7 {[%emt 0:02:25]} 12. Qg4 {[%emt 0:00:34]} Ne6 {[%emt 0:02:43]} 13. Nc3 {[%emt 0:12:11]} Nac5 {[%emt 0:08:33]} 14. Rd1 {[%emt 0:05:23]} Ba6 {[%emt 0:02:38]} 15. Bf4 {[%emt 0:30:22]} Nd3 {[%emt 0:07:10]} 16. Rxd3 {[%emt 0:08:47]} Bxd3 {[%emt 0:01:58]} 17. Rd1 {[%emt 0:00:53]} Ba6 {[%emt 0:08:24]} 18. Nxe7+ {[%emt 0:06:51]} Qxe7 {[%emt 0:01:50]} 19. Bd6 {[%emt 0:00:08]} Qf6 {[%emt 0:12:26]} 20. e5 {[%emt 0:01:42]} Qg6 {[%emt 0:00:17]} 21. Qa4 {[%emt 0:00:56]} Bd3 {[%emt 0:05:38]} 22. Bxf8 {[%emt 0:02:56]} Bc2 {[%emt 0:01:39]} 23. Qa6 {[%emt 0:06:08]} Bxd1 {[%emt 0:02:01]} 24. Bd6 {[%emt 0:01:02]} Qc2 {[%emt 0:05:32]} 25. Qb7 {[%emt 0:02:23]} Rd8 {[%emt 0:03:23]} 26. h4 {[%emt 0:08:02]} Bg4 {[%emt 0:06:03]} 27. Be7 {[%emt 0:02:26]} Nc5 {[%emt 0:05:36]} 28. Bxc5 {[%emt 0:00:29]} bxc5 {[%emt 0:00:24]} 29. Ne4 {[%emt 0:00:06]} Qd1+ {[%emt 0:01:53]} 30. Kh2 {[%emt 0:00:04]} Bf3 {[%emt 0:00:37]} 31. Qc7 {[%emt 0:04:01]} Rf8 {[%emt 0:01:51]} 32. Nc3 {[%emt 0:00:03]} Qd3 {[%emt 0:00:23]} 33. Qxa7 {[%emt 0:00:07]} Bxg2 {[%emt 0:00:48]} 34. Kxg2 {[%emt 0:00:03]} Qd4 {[%emt 0:01:48]} 35. Qc7 {[%emt 0:00:38]} f6 {[%emt 0:00:36]} 36. e6 {[%emt 0:00:46]} dxe6 {[%emt 0:00:19]} 37. Qxc6 {[%emt 0:00:05]} Qe5 {[%emt 0:01:04]} 38. a4 {[%emt 0:04:52]} Rd8 {[%emt 0:01:16]} 39. a5 {[%emt 0:04:25]} Qd6 {[%emt 0:00:25]} 40. Qa4 {[%emt 0:00:11]} Ra8 {[%emt 0:01:18]} 41. h5 {[%emt 0:00:21]} h6 {[%emt 0:00:27]} 42. Kh3 {[%emt 0:01:16]} e5 {[%emt 0:00:38]} 43. g4 {[%emt 0:00:30]} Qa6 {[%emt 0:00:36]} 44. Nd5 {[%emt 0:00:30]} Qd3+ {[%emt 0:00:41]} 45. Ne3 {[%emt 0:00:04]} Kh8 {[%emt 0:00:25]} 46. Kg2 {[%emt 0:00:34]} Qd4 {[%emt 0:00:24]} 47. Qc6 {[%emt 0:00:16]} Qd8 {[%emt 0:00:31]} 48. Nc4 {[%emt 0:01:06]} Rc8 {[%emt 0:00:41]} 49. Qe6 {[%emt 0:00:29]} Rc7 {[%emt 0:00:19]} 50. Nd6 {[%emt 0:00:37]} Qe7 {[%emt 0:00:41]} 51. Qd5 {[%emt 0:00:20]} Rd7 {[%emt 0:00:35]} 52. Qa8+ {[%emt 0:00:06]} Kh7 {[%emt 0:00:09]} 53. Qe4+ {[%emt 0:00:21]} Kh8 {[%emt 0:00:18]} 54. Qa8+ {[%emt 0:00:29]} Kh7 {[%emt 0:00:06]} 55. Qe4+ {[%emt 0:00:28]} Kg8 {[%emt 0:00:22]} 56. Nf5 {[%emt 0:00:35]} Qe6 {[%emt 0:01:19]} 57. Qa8+ {[%emt 0:00:29]} Kh7 {[%emt 0:00:45]} 58. Ne3 {[%emt 0:00:35]} Rc7 {[%emt 0:00:33]} 59. Qe4+ {[%emt 0:00:54]} Kg8 {[%emt 0:00:16]} 60. Kg3 {[%emt 0:00:28]} c4 {[%emt 0:00:38]} 61. Qa8+ {[%emt 0:00:27]} Rc8 {[%emt 0:00:12]} 62. Qb7 {[%emt 0:00:37]} Qc6 {[%emt 0:00:19]} 63. Qe7 {[%emt 0:00:24]} Qc7 {[%emt 0:00:53]} 64. Nd5 {[%emt 0:00:43]} Qc6 {[%emt 0:00:38]} 65. Ne3 {[%emt 0:00:03]} Qc7 {[%emt 0:00:09]} 66. Nd5 {[%emt 0:00:10]} Qc6 {[%emt 0:00:05]} 67. Ne3 {[%emt 0:00:18]} Rb8 {[%emt 0:00:55]} 68. Nf5 {[%emt 0:01:21]} Rb3+ {[%emt 0:00:36]} 69. Kh2 {[%emt 0:00:07]} Rb7 {[%emt 0:00:14]} 70. a6 {[%emt 0:00:53]} Qxa6 {[%emt 0:00:26]} 71. Qe8+ {[%emt 0:00:25]} Kh7 {[%emt 0:00:07]} 72. Qg6+ {[%emt 0:00:11]} Kh8 {[%emt 0:00:45]} 73. Qe8+ {[%emt 0:00:10]} Kh7 {[%emt 0:00:05]} 74. Qg6+ {[%emt 0:00:09]} Kg8 {[%emt 0:00:05]} 75. Qe8+ {[%emt 0:00:08]} Kh7 {[%emt 0:00:08]} 1/2-1/2

[Event "1st Bangalore GM-Open-A 2024"]
[Site "Bangalore"]
[Date "2024.01.19"]
[Round "2.34"]
[White "Nguyen, Duc Hoa"]
[Black "Ramnathan, Balasubramaniam"]
[Result "1-0"]
[ECO "A43"]
[WhiteElo "2322"]
[BlackElo "1916"]
[Annotator "RC"]
[PlyCount "127"]
[EventDate "2024.01.20"]
[EventType "swiss"]
[EventCountry "IND"]
[SourceTitle "playchess.com"]
[Source "ChessBase"]
[SourceQuality "1"]
[TimeControl "5400+30"]

1. e4 {[%emt 0:00:07]} g6 {[%emt 0:00:27]} 2. d4 {[%emt 0:00:17]} Bg7 {[%emt 0:00:14]} 3. f4 {[%emt 0:00:12]} c5 {[%emt 0:01:11]} 4. d5 {[%emt 0:00:16]} d6 {[%emt 0:00:25]} 5. Nf3 {[%emt 0:01:28]} Nf6 {[%emt 0:01:27]} 6. Bb5+ {[%emt 0:02:50]} Bd7 {[%emt 0:00:31]} 7. Qe2 {[%emt 0:01:13]} Qa5+ {[%emt 0:05:27]} 8. Nc3 {[%emt 0:00:06]} Bxb5 {[%emt 0:07:48]} 9. Qxb5+ {[%emt 0:00:06]} Qxb5 {[%emt 0:00:05]} 10. Nxb5 {[%emt 0:00:04]} Na6 {[%emt 0:00:19]} 11. Nd2 {[%emt 0:01:14]} O-O {[%emt 0:07:34]} 12. c3 {[%emt 0:00:21]} Rfc8 {[%emt 0:00:59]} 13. Ke2 {[%emt 0:01:19]} Nc7 {[%emt 0:01:54]} 14. a4 {[%emt 0:00:23]} b6 {[%emt 0:01:59]} 15. Kf3 {[%emt 0:01:28]} a6 {[%emt 0:00:30]} 16. Nxc7 {[%emt 0:00:23]} Rxc7 {[%emt 0:00:06]} 17. Nc4 {[%emt 0:00:23]} Rb8 {[%emt 0:06:29]} 18. Rd1 {[%emt 0:00:34]} Nd7 {[%emt 0:02:08]} 19. Be3 {[%emt 0:01:41]} Kf8 {[%emt 0:10:53]} 20. g4 {[%emt 0:00:48]} h6 {[%emt 0:04:45]} 21. h4 {[%emt 0:00:18]} Kg8 {[%emt 0:00:11]} 22. Bf2 {[%emt 0:00:52]} Rf8 {[%emt 0:04:32]} 23. Re1 {[%emt 0:06:25]} b5 {[%emt 0:01:25]} 24. Na5 {[%emt 0:01:03]} Nb6 {[%emt 0:02:28]} 25. axb5 {[%emt 0:01:21]} axb5 {[%emt 0:00:06]} 26. Nc6 {[%emt 0:01:04]} Na4 {[%emt 0:08:55]} 27. Ra2 {[%emt 0:01:34]} e6 {[%emt 0:04:12]} 28. f5 {[%emt 0:02:03]} exd5 {[%emt 0:07:55]} 29. exd5 {[%emt 0:00:11]} Bf6 {[%emt 0:01:39]} 30. Bg3 {[%emt 0:03:13]} Rd7 {[%emt 0:00:17]} 31. fxg6 {[%emt 0:00:39]} fxg6 {[%emt 0:00:11]} 32. Kg2 {[%emt 0:00:04]} Kf7 {[%emt 0:05:45]} 33. Rf1 {[%emt 0:02:06]} Kg7 {[%emt 0:01:04]} 34. Re1 {[%emt 0:05:37]} Kf7 {[%emt 0:00:06]} 35. c4 {[%emt 0:05:08]} Nb6 {[%emt 0:00:48]} 36. cxb5 {[%emt 0:00:24]} Nxd5 {[%emt 0:00:37]} 37. b3 {[%emt 0:00:32]} Re8 {[%emt 0:08:20]} 38. Rxe8 {[%emt 0:01:36]} Kxe8 {[%emt 0:00:06]} 39. Ra8+ {[%emt 0:00:15]} Kf7 {[%emt 0:01:00]} 40. Rb8 {[%emt 0:00:19]} Nb4 {[%emt 0:01:35]} 41. Nxb4 {[%emt 0:02:19]} cxb4 {[%emt 0:00:05]} 42. b6 {[%emt 0:00:00]} Ke6 {[%emt 0:03:08]} 43. b7 {[%emt 0:08:15]} Be7 {[%emt 0:00:05]} 44. Rg8 {[%emt 0:09:10]} Rxb7 {[%emt 0:00:05]} 45. Rxg6+ {[%emt 0:00:03]} Kd5 {[%emt 0:00:42]} 46. Rxh6 {[%emt 0:00:09]} Ra7 {[%emt 0:00:12]} 47. Rh5+ {[%emt 0:02:09]} Ke4 {[%emt 0:00:19]} 48. g5 {[%emt 0:01:03]} Kf5 {[%emt 0:01:55]} 49. Rh7 {[%emt 0:00:50]} Rc7 {[%emt 0:01:04]} 50. Kh3 {[%emt 0:00:29]} Kg6 {[%emt 0:00:30]} 51. Rh6+ {[%emt 0:00:10]} Kf5 {[%emt 0:00:05]} 52. Rh8 {[%emt 0:02:07]} Rc3 {[%emt 0:00:17]} 53. Rh7 {[%emt 0:02:30]} Re3 {[%emt 0:00:30]} 54. Rf7+ {[%emt 0:00:14]} Kg6 {[%emt 0:00:13]} 55. Rf4 {[%emt 0:00:14]} Rxb3 {[%emt 0:00:40]} 56. Kg4 {[%emt 0:00:13]} Kg7 {[%emt 0:01:14]} 57. Re4 {[%emt 0:01:49]} Kf8 {[%emt 0:00:45]} 58. g6 {[%emt 0:01:15]} Bf6 {[%emt 0:00:46]} 59. Bxd6+ {[%emt 0:00:09]} Kg7 {[%emt 0:00:04]} 60. h5 {[%emt 0:00:10]} Rb1 {[%emt 0:00:15]} 61. Kf5 {[%emt 0:02:14]} Rf1+ {[%emt 0:00:11]} 62. Bf4 {[%emt 0:00:21]} b3 {[%emt 0:00:24]} 63. h6+ {[%emt 0:00:09]} Kf8 {[%emt 0:00:14]} 64. Kxf6 {[%emt 0:00:17]} 1-0

[Event "1st Bangalore GM-Open-A 2024"]
[Site "Bangalore"]
[Date "2024.01.19"]
[Round "2.35"]
[White "Mohamed Anees M"]
[Black "Anup Shankar R"]
[Result "1/2-1/2"]
[ECO "A50"]
[WhiteElo "2319"]
[BlackElo "1912"]
[Annotator "RC"]
[PlyCount "103"]
[EventDate "2024.01.20"]
[EventType "swiss"]
[EventCountry "IND"]
[SourceTitle "playchess.com"]
[Source "ChessBase"]
[SourceQuality "1"]
[TimeControl "5400+30"]

1. Nf3 {[%emt 0:00:03]} Nf6 {[%emt 0:03:50]} 2. g3 {[%emt 0:01:14]} b6 {[%emt 0:00:02]} 3. Bg2 {[%emt 0:00:08]} Bb7 {[%emt 0:00:08]} 4. c4 {[%emt 0:00:20]} g6 {[%emt 0:00:13]} 5. O-O {[%emt 0:01:09]} Bg7 {[%emt 0:00:02]} 6. Nc3 {[%emt 0:00:54]} O-O {[%emt 0:00:05]} 7. d4 {[%emt 0:05:49]} Ne4 {[%emt 0:00:02]} 8. Nxe4 {[%emt 0:01:35]} Bxe4 {[%emt 0:00:04]} 9. d5 {[%emt 0:01:05]} a5 {[%emt 0:10:57]} 10. Nd4 {[%emt 0:05:52]} Bxg2 {[%emt 0:06:38]} 11. Kxg2 {[%emt 0:00:06]} e5 {[%emt 0:01:23]} 12. Nb5 {[%emt 0:02:26]} d6 {[%emt 0:04:04]} 13. e4 {[%emt 0:00:24]} Na6 {[%emt 0:02:13]} 14. f3 {[%emt 0:14:19]} f5 {[%emt 0:00:58]} 15. Nc3 {[%emt 0:01:57]} Qd7 {[%emt 0:03:56]} 16. Bd2 {[%emt 0:01:05]} Rf7 {[%emt 0:06:47]} 17. Qe2 {[%emt 0:01:37]} Raf8 {[%emt 0:03:05]} 18. Rab1 {[%emt 0:03:21]} Nc5 {[%emt 0:09:42]} 19. b3 {[%emt 0:06:08]} h6 {[%emt 0:09:50]} 20. Be3 {[%emt 0:03:14]} Nxe4 {[%emt 0:03:37]} 21. fxe4 {[%emt 0:05:54]} f4 {[%emt 0:00:09]} 22. Qd2 {[%emt 0:03:36]} fxe3 {[%emt 0:06:01]} 23. Qxe3 {[%emt 0:01:15]} h5 {[%emt 0:01:01]} 24. Rxf7 {[%emt 0:06:24]} Qxf7 {[%emt 0:02:56]} 25. h4 {[%emt 0:06:04]} Kh7 {[%emt 0:06:39]} 26. Qe2 {[%emt 0:00:48]} Kg8 {[%emt 0:05:27]} 27. Nb5 {[%emt 0:03:07]} Qd7 {[%emt 0:02:13]} 28. Rf1 {[%emt 0:01:06]} Bf6 {[%emt 0:00:02]} 29. a3 {[%emt 0:03:41]} Kg7 {[%emt 0:02:03]} 30. Qe3 {[%emt 0:01:40]} Rf7 {[%emt 0:08:43]} 31. b4 {[%emt 0:03:31]} axb4 {[%emt 0:02:01]} 32. axb4 {[%emt 0:00:02]} Qd8 {[%emt 0:00:52]} 33. c5 {[%emt 0:02:10]} bxc5 {[%emt 0:00:26]} 34. bxc5 {[%emt 0:00:01]} dxc5 {[%emt 0:00:33]} 35. Qxc5 {[%emt 0:00:33]} Qd7 {[%emt 0:00:22]} 36. Qc4 {[%emt 0:01:50]} Re7 {[%emt 0:00:51]} 37. Qe2 {[%emt 0:02:32]} c6 {[%emt 0:00:23]} 38. Nc3 {[%emt 0:00:13]} cxd5 {[%emt 0:00:30]} 39. Nxd5 {[%emt 0:00:27]} Rf7 {[%emt 0:00:01]} 40. Qb2 {[%emt 0:06:22]} Qe6 {[%emt 0:00:36]} 41. Qb8 {[%emt 0:02:20]} Bxh4 {[%emt 0:00:32]} 42. Rxf7+ {[%emt 0:00:08]} Kxf7 {[%emt 0:00:06]} 43. gxh4 {[%emt 0:02:29]} Qg4+ {[%emt 0:00:02]} 44. Kf2 {[%emt 0:00:26]} Qxh4+ {[%emt 0:00:35]} 45. Ke3 {[%emt 0:01:10]} Qe1+ {[%emt 0:00:02]} 46. Kd3 {[%emt 0:00:28]} Qd1+ {[%emt 0:00:54]} 47. Kc4 {[%emt 0:01:55]} Qd4+ {[%emt 0:00:02]} 48. Kb5 {[%emt 0:00:48]} Qb2+ {[%emt 0:00:15]} 49. Nb4 {[%emt 0:00:03]} Qe2+ {[%emt 0:00:05]} 50. Kc5 {[%emt 0:00:04]} Qxe4 {[%emt 0:00:13]} 51. Nd5 {[%emt 0:00:16]} Kg7 {[%emt 0:01:48]} 52. Qe8 {[%emt 0:01:38]} 1/2-1/2

[Event "1st Bangalore GM-Open-A 2024"]
[Site "Bangalore"]
[Date "2024.01.19"]
[Round "2.36"]
[White "Bhosale Shriraj"]
[Black "Sahoo, Utkal Ranjan"]
[Result "1/2-1/2"]
[ECO "A04"]
[WhiteElo "1946"]
[BlackElo "2316"]
[Annotator "RC"]
[PlyCount "180"]
[EventDate "2024.01.20"]
[EventType "swiss"]
[EventCountry "IND"]
[SourceTitle "playchess.com"]
[Source "ChessBase"]
[SourceQuality "1"]
[TimeControl "5400+30"]

1. Nf3 {[%emt 0:08:39]} f5 {[%emt 0:00:27]} 2. g3 {[%emt 0:00:45]} Nf6 {[%emt 0:00:08]} 3. Bg2 {[%emt 0:00:18]} g6 {[%emt 0:00:22]} 4. O-O {[%emt 0:00:29]} Bg7 {[%emt 0:00:03]} 5. d3 {[%emt 0:00:38]} O-O {[%emt 0:00:26]} 6. e4 {[%emt 0:01:13]} e6 {[%emt 0:01:43]} 7. e5 {[%emt 0:08:02]} Ng4 {[%emt 0:00:32]} 8. d4 {[%emt 0:05:48]} d6 {[%emt 0:01:15]} 9. Bg5 {[%emt 0:02:19]} Qe8 {[%emt 0:01:27]} 10. Qc1 {[%emt 0:06:28]} dxe5 {[%emt 0:04:41]} 11. h3 {[%emt 0:00:15]} e4 {[%emt 0:01:31]} 12. hxg4 {[%emt 0:00:30]} exf3 {[%emt 0:00:06]} 13. Bxf3 {[%emt 0:00:04]} Bxd4 {[%emt 0:04:05]} 14. Bh6 {[%emt 0:02:25]} Rf7 {[%emt 0:03:01]} 15. c3 {[%emt 0:00:45]} Bh8 {[%emt 0:01:22]} 16. gxf5 {[%emt 0:07:13]} Rxf5 {[%emt 0:00:07]} 17. Bg4 {[%emt 0:00:39]} Rf7 {[%emt 0:01:43]} 18. Qe3 {[%emt 0:01:22]} Nc6 {[%emt 0:01:12]} 19. Nd2 {[%emt 0:00:45]} e5 {[%emt 0:05:41]} 20. Bf3 {[%emt 0:07:27]} Ne7 {[%emt 0:01:50]} 21. g4 {[%emt 0:01:57]} Be6 {[%emt 0:04:21]} 22. c4 {[%emt 0:07:22]} Qc8 {[%emt 0:02:47]} 23. Qe2 {[%emt 0:00:59]} Nc6 {[%emt 0:05:44]} 24. Bxc6 {[%emt 0:00:29]} bxc6 {[%emt 0:00:30]} 25. f3 {[%emt 0:00:23]} Qd8 {[%emt 0:01:07]} 26. Kg2 {[%emt 0:02:22]} Qd4 {[%emt 0:10:25]} 27. b3 {[%emt 0:04:15]} Rd8 {[%emt 0:02:43]} 28. Ne4 {[%emt 0:00:48]} Qd3 {[%emt 0:00:41]} 29. Qxd3 {[%emt 0:03:04]} Rxd3 {[%emt 0:00:05]} 30. Nc5 {[%emt 0:07:09]} Rd6 {[%emt 0:00:02]} 31. Rad1 {[%emt 0:00:05]} Bc8 {[%emt 0:07:28]} 32. Ne4 {[%emt 0:00:35]} Rdd7 {[%emt 0:02:09]} 33. Nc5 {[%emt 0:01:03]} Rxd1 {[%emt 0:03:52]} 34. Rxd1 {[%emt 0:00:24]} Bg7 {[%emt 0:00:08]} 35. Be3 {[%emt 0:04:02]} a6 {[%emt 0:02:43]} 36. g5 {[%emt 0:02:00]} Rf8 {[%emt 0:00:33]} 37. b4 {[%emt 0:00:54]} Re8 {[%emt 0:02:23]} 38. Kg3 {[%emt 0:03:05]} Kf7 {[%emt 0:02:29]} 39. Rh1 {[%emt 0:01:55]} Rh8 {[%emt 0:00:05]} 40. Nb3 {[%emt 0:00:47]} Be6 {[%emt 0:00:32]} 41. Na5 {[%emt 0:00:48]} Bd7 {[%emt 0:01:12]} 42. Nb3 {[%emt 0:02:07]} Bf8 {[%emt 0:00:50]} 43. Bc5 {[%emt 0:01:21]} Bd6 {[%emt 0:04:39]} 44. a3 {[%emt 0:03:25]} Ke6 {[%emt 0:02:30]} 45. Be3 {[%emt 0:01:40]} Kf5 {[%emt 0:02:59]} 46. Nd2 {[%emt 0:01:12]} Be7 {[%emt 0:00:42]} 47. Ne4 {[%emt 0:00:20]} Be6 {[%emt 0:00:16]} 48. Rc1 {[%emt 0:01:09]} Rd8 {[%emt 0:00:43]} 49. Kf2 {[%emt 0:00:47]} Bg8 {[%emt 0:00:30]} 50. Ng3+ {[%emt 0:01:11]} Ke6 {[%emt 0:00:02]} 51. Rc3 {[%emt 0:00:59]} Ra8 {[%emt 0:02:34]} 52. Ne4 {[%emt 0:00:37]} Bf7 {[%emt 0:00:39]} 53. Bc1 {[%emt 0:00:28]} Rb8 {[%emt 0:01:15]} 54. Re3 {[%emt 0:00:24]} Kd7 {[%emt 0:00:24]} 55. Nf6+ {[%emt 0:00:57]} Bxf6 {[%emt 0:00:37]} 56. gxf6 {[%emt 0:00:01]} Bxc4 {[%emt 0:01:48]} 57. Rxe5 {[%emt 0:00:06]} Re8 {[%emt 0:00:28]} 58. Rxe8 {[%emt 0:00:18]} Kxe8 {[%emt 0:00:02]} 59. a4 {[%emt 0:00:15]} Kf7 {[%emt 0:00:14]} 60. Bg5 {[%emt 0:00:04]} Ke6 {[%emt 0:00:55]} 61. Kg3 {[%emt 0:00:56]} Kf5 {[%emt 0:01:04]} 62. Kh4 {[%emt 0:00:34]} h5 {[%emt 0:00:55]} 63. a5 {[%emt 0:00:24]} c5 {[%emt 0:01:41]} 64. bxc5 {[%emt 0:00:11]} c6 {[%emt 0:00:05]} 65. f4 {[%emt 0:02:03]} Bf7 {[%emt 0:00:10]} 66. Kg3 {[%emt 0:00:55]} Ke6 {[%emt 0:00:41]} 67. Bh6 {[%emt 0:00:33]} Kd5 {[%emt 0:00:57]} 68. Bf8 {[%emt 0:00:10]} Kc4 {[%emt 0:00:02]} 69. Kh4 {[%emt 0:00:20]} Kb5 {[%emt 0:00:04]} 70. Kg5 {[%emt 0:00:13]} Kxa5 {[%emt 0:00:04]} 71. Kh6 {[%emt 0:00:11]} h4 {[%emt 0:00:21]} 72. Kg7 {[%emt 0:00:33]} Bd5 {[%emt 0:01:21]} 73. Bd6 {[%emt 0:01:17]} h3 {[%emt 0:00:27]} 74. f5 {[%emt 0:00:02]} gxf5 {[%emt 0:00:04]} 75. f7 {[%emt 0:00:03]} Bxf7 {[%emt 0:00:03]} 76. Kxf7 {[%emt 0:00:08]} Kb5 {[%emt 0:01:50]} 77. Ke6 {[%emt 0:00:03]} f4 {[%emt 0:00:25]} 78. Bxf4 {[%emt 0:00:04]} Kxc5 {[%emt 0:00:26]} 79. Kf5 {[%emt 0:00:35]} Kd4 {[%emt 0:06:34]} 80. Kg4 {[%emt 0:00:25]} c5 {[%emt 0:00:47]} 81. Kxh3 {[%emt 0:00:03]} c4 {[%emt 0:00:06]} 82. Kg2 {[%emt 0:00:50]} Kd3 {[%emt 0:00:33]} 83. Kf2 {[%emt 0:00:35]} a5 {[%emt 0:00:07]} 84. Ke1 {[%emt 0:01:27]} Kc2 {[%emt 0:00:04]} 85. Bd6 {[%emt 0:01:01]} a4 {[%emt 0:01:30]} 86. Ke2 {[%emt 0:00:37]} c3 {[%emt 0:01:26]} 87. Ke3 {[%emt 0:00:34]} Kb2 {[%emt 0:01:41]} 88. Kd3 {[%emt 0:00:17]} c2 {[%emt 0:00:08]} 89. Ba3+ {[%emt 0:00:14]} Kxa3 {[%emt 0:00:35]} 90. Kxc2 {[%emt 0:00:04]} Kb4 {[%emt 0:00:04]} 1/2-1/2

[Event "1st Bangalore GM-Open-A 2024"]
[Site "Bangalore"]
[Date "2024.01.19"]
[Round "2.37"]
[White "Hegde, Ravi Gopal"]
[Black "Apoorv Kamble"]
[Result "1/2-1/2"]
[ECO "A08"]
[WhiteElo "1916"]
[BlackElo "2308"]
[Annotator "RC"]
[PlyCount "147"]
[EventDate "2024.01.20"]
[EventType "swiss"]
[EventCountry "IND"]
[SourceTitle "playchess.com"]
[Source "ChessBase"]
[SourceQuality "1"]
[TimeControl "5400+30"]

1. e4 {[%emt 0:00:05]} c5 {[%emt 0:00:22]} 2. d3 {[%emt 0:02:08]} Nc6 {[%emt 0:03:06]} 3. g3 {[%emt 0:00:36]} d5 {[%emt 0:01:01]} 4. Nd2 {[%emt 0:00:20]} Nf6 {[%emt 0:01:47]} 5. Bg2 {[%emt 0:00:10]} dxe4 {[%emt 0:05:38]} 6. dxe4 {[%emt 0:03:25]} e5 {[%emt 0:04:11]} 7. Ngf3 {[%emt 0:00:28]} Be7 {[%emt 0:00:56]} 8. O-O {[%emt 0:00:25]} Qc7 {[%emt 0:02:05]} 9. c3 {[%emt 0:00:23]} O-O {[%emt 0:00:32]} 10. Qe2 {[%emt 0:00:13]} h6 {[%emt 0:02:22]} 11. Re1 {[%emt 0:02:44]} Be6 {[%emt 0:01:13]} 12. Nh4 {[%emt 0:05:53]} Rfd8 {[%emt 0:01:35]} 13. Nf5 {[%emt 0:03:28]} Bf8 {[%emt 0:01:16]} 14. a4 {[%emt 0:01:46]} Na5 {[%emt 0:05:02]} 15. Qf3 {[%emt 0:00:43]} Nd7 {[%emt 0:15:58]} 16. Ne3 {[%emt 0:10:35]} Nb6 {[%emt 0:01:42]} 17. Bf1 {[%emt 0:03:54]} c4 {[%emt 0:00:42]} 18. Qh5 {[%emt 0:00:45]} g6 {[%emt 0:08:20]} 19. Qf3 {[%emt 0:01:25]} Rd6 {[%emt 0:02:14]} 20. Bg2 {[%emt 0:04:50]} Qd7 {[%emt 0:03:14]} 21. Qe2 {[%emt 0:02:19]} Rd8 {[%emt 0:07:28]} 22. Nd5 {[%emt 0:02:57]} Qc6 {[%emt 0:01:44]} 23. Nf3 {[%emt 0:02:30]} Bg4 {[%emt 0:02:32]} 24. Bxh6 {[%emt 0:02:18]} Nxd5 {[%emt 0:04:06]} 25. exd5 {[%emt 0:03:20]} Qxd5 {[%emt 0:01:59]} 26. Bxf8 {[%emt 0:00:10]} Kxf8 {[%emt 0:01:10]} 27. Qxe5 {[%emt 0:00:59]} Qxe5 {[%emt 0:00:10]} 28. Nxe5 {[%emt 0:00:10]} Be6 {[%emt 0:00:38]} 29. Bf3 {[%emt 0:00:51]} Rb6 {[%emt 0:03:55]} 30. Re2 {[%emt 0:05:19]} Nb3 {[%emt 0:02:34]} 31. Rae1 {[%emt 0:00:33]} Nc5 {[%emt 0:00:59]} 32. h4 {[%emt 0:02:41]} Kg7 {[%emt 0:00:39]} 33. a5 {[%emt 0:04:41]} Ra6 {[%emt 0:00:26]} 34. Ra1 {[%emt 0:00:53]} Rb8 {[%emt 0:07:43]} 35. Bg4 {[%emt 0:11:00]} Bxg4 {[%emt 0:04:24]} 36. Nxg4 {[%emt 0:00:08]} Nb3 {[%emt 0:00:01]} 37. Ra4 {[%emt 0:03:57]} b5 {[%emt 0:00:13]} 38. Ra3 {[%emt 0:00:51]} Rxa5 {[%emt 0:00:17]} 39. Rxa5 {[%emt 0:00:45]} Nxa5 {[%emt 0:00:01]} 40. Re7 {[%emt 0:00:31]} Rb7 {[%emt 0:00:53]} 41. Re5 {[%emt 0:01:26]} Nb3 {[%emt 0:01:20]} 42. h5 {[%emt 0:00:39]} gxh5 {[%emt 0:00:42]} 43. Rxh5 {[%emt 0:00:06]} Nc1 {[%emt 0:00:53]} 44. Ne5 {[%emt 0:00:42]} f6 {[%emt 0:00:38]} 45. Nc6 {[%emt 0:03:55]} Nd3 {[%emt 0:00:15]} 46. Nd4 {[%emt 0:00:22]} a6 {[%emt 0:00:22]} 47. Ne6+ {[%emt 0:00:17]} Kg8 {[%emt 0:01:38]} 48. Nc5 {[%emt 0:00:08]} Nxc5 {[%emt 0:01:09]} 49. Rxc5 {[%emt 0:00:09]} Rb6 {[%emt 0:00:14]} 50. Rc7 {[%emt 0:00:33]} Rd6 {[%emt 0:00:49]} 51. Ra7 {[%emt 0:00:42]} Rd1+ {[%emt 0:00:36]} 52. Kg2 {[%emt 0:00:06]} Ra1 {[%emt 0:00:03]} 53. Kf3 {[%emt 0:00:08]} Ra2 {[%emt 0:00:04]} 54. Ke4 {[%emt 0:00:28]} Rxb2 {[%emt 0:02:27]} 55. f4 {[%emt 0:00:10]} Rg2 {[%emt 0:00:43]} 56. Rxa6 {[%emt 0:00:18]} Rxg3 {[%emt 0:00:02]} 57. Rb6 {[%emt 0:00:12]} Rxc3 {[%emt 0:00:17]} 58. Rxb5 {[%emt 0:00:04]} Kg7 {[%emt 0:00:31]} 59. Kf5 {[%emt 0:00:07]} Rf3 {[%emt 0:00:16]} 60. Rb7+ {[%emt 0:00:12]} Kh6 {[%emt 0:00:02]} 61. Rf7 {[%emt 0:00:34]} c3 {[%emt 0:00:20]} 62. Rxf6+ {[%emt 0:00:08]} Kg7 {[%emt 0:00:03]} 63. Rc6 {[%emt 0:00:08]} Rd3 {[%emt 0:00:24]} 64. Rc7+ {[%emt 0:00:11]} Kf8 {[%emt 0:00:14]} 65. Kg5 {[%emt 0:00:08]} Rd5+ {[%emt 0:01:40]} 66. f5 {[%emt 0:00:29]} c2 {[%emt 0:00:32]} 67. Kg6 {[%emt 0:00:28]} Rd2 {[%emt 0:00:15]} 68. Rc8+ {[%emt 0:00:23]} Ke7 {[%emt 0:00:01]} 69. f6+ {[%emt 0:00:10]} Ke6 {[%emt 0:00:08]} 70. Rc6+ {[%emt 0:01:31]} Kd5 {[%emt 0:01:52]} 71. Rc8 {[%emt 0:01:01]} Rg2+ {[%emt 0:00:03]} 72. Kf5 {[%emt 0:00:17]} Rf2+ {[%emt 0:00:14]} 73. Kg6 {[%emt 0:00:09]} Rg2+ {[%emt 0:00:03]} 74. Kf5 {[%emt 0:00:54]} 1/2-1/2